Cogmind - Beta 13 @@@ ROGUE MODE // 2024.08.01 @ 08:43:49 Player: Longball Result: Destroyed by G-50 Soldier with Heavy Laser Performance ------------- Evolutions (3) 1500 Regions Visited (14) 2800 Robots Destroyed (99) 495 Value Destroyed (3382) 3382 Prototype IDs (21) 420 Alien Tech Used (0) 0 Bonus (906) 906 TOTAL SCORE: 9503 Bonus ------- High Alert Combat Kills 83 Follower Combat Kills 423 Entered Garrisons 200 Met Data Miner 300 Friendly Fire -100 Cogmind --------- Core Integrity 0/700 Matter 294/300 Energy 100/100 System Corruption 4% Temperature Cool (9) Movement Core (50) Location -6/Proximity Caves Parts ------- > --- POWER (2) -------- (None) > --- PROPULSION (4) --- (None) > --- UTILITY (5) ------ Advanced Terrain Scan Processor > --- WEAPON (2) ------- (None) > --- INVENTORY (5) ---- Carbon-fiber Leg Advanced Targeting Computer Makeshift Sword Peak State ------------ > --- POWER ------------ Light Nuclear Core Light Nuclear Core > --- PROPULSION ------- Aluminum Leg Aluminum Leg Aluminum Leg > --- UTILITY ---------- Sensor Array Advanced Terrain Scan Processor Advanced Targeting Computer Weapon Cycler Hardlight Generator > --- WEAPON ----------- Precision Assault Rifle Precision Assault Rifle > --- INVENTORY -------- Advanced Weight Redist. System Advanced Targeting Computer Heavy Particle Cannon Precision Assault Rifle Makeshift Sword [Rating: 35] Favorites ----------- Power Improved Ion Engine Engine Improved Ion Engine Power Core Light Nuclear Core Propulsion Aluminum Leg Treads Medium Treads Leg Aluminum Leg Wheel Compact Wheel Flight Unit Makeshift Flight Unit Utility Sensor Array Device Sensor Array Storage Medium Storage Unit Processor Signal Interpreter Hackware Makeshift System Shield Weapon Improved Assault Rifle Energy Gun Pulse Rifle Energy Cannon Heavy Particle Cannon Ballistic Gun Improved Assault Rifle Ballistic Cannon Flak Cannon Launcher Rocket Launcher Slashing Weapon Makeshift Sword Build | -11 -10 -10 -9 -9 -9 -8 -8 -8 -8 -7 -7 -7 -7 -6 ------- Run | Yrd Mat Min Mat Min Exi Min Mat Gar Mat Fac Low Low Dat Pro Slots Evolved 6 | . . . 2 . . . 2 . . 2 . . . . Power 1 | . . . . . . . . . . 1 . . . . Propulsion 2 | . . . 2 . . . . . . . . . . . Utility 3 | . . . . . . . 2 . . 1 . . . . Weapon . | . . . . . . . . . . . . . . . Parts Attached 136 | 7 7 17 10 14 4 5 7 16 14 17 9 5 . 4 Power 12 | 1 . 3 2 . . . . 1 1 1 2 1 . . Engine 5 | 1 . 2 2 . . . . . . . . . . . Core 7 | . . 1 . . . . . 1 1 1 2 1 . . Reactor . | . . . . . . . . . . . . . . . Propulsion 42 | 2 1 6 2 8 . . 4 4 5 5 1 2 . 2 Treads 10 | . . . . . . . 4 4 1 1 . . . . Leg 29 | 2 1 6 2 8 . . . . 4 4 . . . 2 Wheel 2 | . . . . . . . . . . . . 2 . . Hover . | . . . . . . . . . . . . . . . Flight 1 | . . . . . . . . . . . 1 . . . Utility 17 | 2 2 2 . . 1 . 2 1 . 5 2 . . . Device 9 | 1 1 1 . . . . . 1 . 3 2 . . . Storage 2 | 1 . . . . . . 1 . . . . . . . Processor 5 | . 1 1 . . . . 1 . . 2 . . . . Hackware 1 | . . . . . 1 . . . . . . . . . Protection . | . . . . . . . . . . . . . . . Artifact . | . . . . . . . . . . . . . . . Weapon 65 | 2 4 6 6 6 3 5 1 10 8 6 4 2 . 2 Energy Gun 2 | . 1 . . . . . . . . . 1 . . . Energy Cannon 5 | . . . . . . . . . 1 2 . 1 . 1 Ballistic Gun 31 | 2 2 4 4 3 2 2 . 3 3 2 3 1 . . Ballistic Cannon 6 | . 1 . 1 . . 1 . 2 1 . . . . . Launcher 12 | . . 2 1 3 . 1 . 2 2 . . . . 1 Special Weapon . | . . . . . . . . . . . . . . . Impact Weapon . | . . . . . . . . . . . . . . . Slashing Weapon 9 | . . . . . 1 1 1 3 1 2 . . . . Piercing Weapon . | . . . . . . . . . . . . . . . Special Melee Weapon . | . . . . . . . . . . . . . . . Unidentified Prototypes 2 | . . . 1 . . . . . . 1 . . . . Parts Lost 47 | . . 8 1 . . . . 3 11 1 9 10 . 4 Power 9 | . . 2 1 . . . . . 2 . 2 2 . . Propulsion 16 | . . 2 . . . . . 2 4 . 4 2 . 2 Utility 11 | . . 1 . . . . . 1 2 1 2 4 . . Weapon 11 | . . 3 . . . . . . 3 . 1 2 . 2 Highest Loss Streak 9 | . . 7 1 . . . . 1 9 1 8 5 . 2 To Critical Strikes . | . . . . . . . . . . . . . . . Average Slot Usage (%) 86 | . 99 87 92 100 100 100 100 90 86 59 73 51 23 19 Engine 7 | . 14 9 7 11 11 11 9 7 . . . . . . Core 2 | . . 2 3 . . . . 1 7 7 8 1 . . Treads 5 | . . . . . . . 24 32 16 5 . . . . Leg 24 | . 28 25 36 44 44 44 11 . 13 7 12 . . 3 Device 8 | . 6 4 11 11 11 11 9 3 6 7 19 17 . . Storage 3 | . 14 9 . . . . 9 9 8 . . . . . Processor 9 | . 7 11 11 11 4 . 9 9 9 16 15 14 7 7 Hackware 3 | . . . . . 6 11 9 9 8 . . . . . Energy Cannon 1 | . . . . . . . . . 6 6 2 1 7 3 Ballistic Gun 13 | . 14 21 19 21 20 13 6 8 1 5 9 4 . . Ballistic Cannon 3 | . 13 . 2 . . 7 9 4 7 . . . . . Naked Turns . | . . . . . . . . . . . . . . . Heaviest Build 28 | 14 16 15 14 15 14 17 27 28 28 22 27 14 6 6 Greatest Support 112 | 20 20 30 50 50 40 40 112 112 88 40 40 26 16 30 Greatest Overweight (x) 4 | . . . . . . . . . . . 4 . . . Average Overweight (x) . | . . . . . . . . . . . . . . . Largest Inventory Capacity 10 | 8 8 8 5 5 5 5 10 10 10 5 5 5 5 5 Average Capacity 6 | 7 8 7 5 5 5 5 9 10 9 5 5 5 5 5 Most Carried 10 | 6 8 8 5 5 5 5 10 10 10 5 5 5 3 3 Average Carried 6 | 3 7 6 4 4 5 5 7 9 9 4 4 4 3 2 Final Capacity 10 | 8 8 5 5 5 5 5 10 10 5 5 5 5 5 5 Final Carried 10 | 6 8 2 5 5 5 5 10 9 5 5 5 3 3 3 Class Distribution -------------------- 55% | Scavenger-Mutant 44% | Mutant Dominant Class ---------------- Mutant | -10/Materials Mutant | -10/Mines Scavenger-Mutant | -9/Materials Scavenger-Mutant | -9/Mines Scavenger-Mutant | -9/Exiles Scavenger-Mutant | -8/Mines Mutant | -8/Materials Mutant | -8/Garrison Scavenger-Mutant | -8/Materials Mutant | -7/Factory Mutant | -7/Lower Caves Mutant | -7/Lower Caves Mutant | -7/Data Miner Mutant | -6/Proximity Caves Resources | -11 -10 -10 -9 -9 -9 -8 -8 -8 -8 -7 -7 -7 -7 -6 ----------- Run | Yrd Mat Min Mat Min Exi Min Mat Gar Mat Fac Low Low Dat Pro Matter Collected 3412 | 226 341 542 272 259 . 67 292 524 355 206 235 32 . 61 Remotely 16 | . . . . . . . . . . . 16 . . . Salvage Created 3240 | 74 367 240 566 350 . 24 128 388 443 165 340 104 . 51 Parts 210 | 5 25 9 49 24 . 7 10 29 19 6 22 4 . 1 Haulers Intercepted 3 | . 1 . 2 . . . . . . . . . . . Recyclers Shooed 2 | 1 . . . . . . 1 . . . . . . . Parts Field Recycled . | . . . . . . . . . . . . . . . Retrieved Matter . | . . . . . . . . . . . . . . . Parts Self-Destructed 38 | . . . . . . . . . . . 20 3 . 15 Prevented . | . . . . . . . . . . . . . . . Kills | -11 -10 -10 -9 -9 -9 -8 -8 -8 -8 -7 -7 -7 -7 -6 ------- Run | Yrd Mat Min Mat Min Exi Min Mat Gar Mat Fac Low Low Dat Pro Combat Hostiles Destroyed 91 | . 8 9 10 9 . 3 6 15 16 3 8 3 . 1 Melee 7 | . . . . . . . 1 4 . 2 . . . . Guns 37 | . 4 5 6 5 . 1 3 1 2 1 7 2 . . Cannons 20 | . 4 . 1 . . . 2 2 8 . 1 1 . 1 AOE 27 | . . 4 3 4 . 2 . 8 6 . . . . . Classes Destroyed 13 | 1 3 2 4 1 . . 1 . . . 1 . . . Worker 1 | . . . 1 . . . . . . . . . . . Builder 1 | . . . 1 . . . . . . . . . . . Tunneler 3 | 3 . . . . . . . . . . . . . . Hauler 3 | . 1 . 2 . . . . . . . . . . . Watcher 4 | . 1 . 2 . . . . . 1 . . . . . Swarmer 26 | . . . 3 . . 3 3 7 5 . 3 2 . . Grunt 46 | . 8 4 1 8 . . 2 4 11 3 4 . . 1 Brawler 1 | . . . . 1 . . . . . . . . . . Sentry 9 | . . . 6 . . . . 3 . . . . . . Hunter 3 | . . . . . . . 1 1 . . . 1 . . Programmer 1 | . . . . . . . . . . . 1 . . . Zionite 1 | . . 1 . . . . . . . . . . . . Assembled 5 | . . 5 . . . . . . . . . . . . Best Kill Streak 7 | 3 2 4 7 3 . 3 5 6 5 2 4 2 . 1 Combat Bots Only 6 | . 2 4 4 3 . 3 5 6 5 2 4 2 . 1 Max Kills in Single Turn 3 | 1 1 2 3 2 . 2 1 3 2 1 1 1 . 1 Gunslinging . | . . . . . . . . . . . . . . . Exploded 3 | . . 2 2 2 . 2 . 3 2 . . . . . Melee 1 | . . . . . . . 1 1 . 1 . . . . Uniques/NPCs Destroyed . | . . . . . . . . . . . . . . . Combat | -11 -10 -10 -9 -9 -9 -8 -8 -8 -8 -7 -7 -7 -7 -6 -------- Run | Yrd Mat Min Mat Min Exi Min Mat Gar Mat Fac Low Low Dat Pro Hostile Shots Fired 566 | . 33 75 28 21 . 1 40 51 114 39 64 52 . 48 Missed 158 | . 11 20 11 7 . . 12 12 19 15 14 19 . 18 Damage Taken 6479 | . 273 882 206 192 . 36 350 690 1491 299 721 688 . 651 Core 1372 | . 71 162 42 . . . 48 46 303 127 26 235 . 312 Absorbed by Shields 180 | . . . . . . . . . . 64 116 . . . Regen/Repaired (Parts) 391 | . 78 . . . . . . . 313 . . . . . Core Remaining (%) 55 | 100 . 6 . . . 89 . . 27 . . . . . Volleys Fired 228 | 8 31 28 23 21 . 2 12 18 32 8 27 7 . 11 Largest 2 | 2 2 2 2 2 . 2 2 2 2 2 2 2 . 1 Hottest 119 | 40 55 50 59 46 . 46 67 67 119 103 103 103 . 75 Shots Fired 408 | 16 62 54 45 34 1 3 24 27 57 14 46 14 . 11 Gun 254 | 16 31 51 39 26 1 2 12 11 9 6 39 11 . . Cannon 126 | . 31 . 4 . . . 12 9 42 8 7 3 . 10 Launcher 28 | . . 3 2 8 . 1 . 7 6 . . . . 1 Special . | . . . . . . . . . . . . . . . Kinetic 327 | 16 62 51 43 26 1 2 24 20 30 6 39 7 . . Thermal 53 | . . . . . . . . . 21 8 7 7 . 10 Explosive 26 | . . 3 . 8 . 1 . 7 6 . . . . 1 Electromagnetic 2 | . . . 2 . . . . . . . . . . . Robot Hit Streak 26 | 7 22 6 15 20 5 6 5 5 9 12 24 26 . 9 Robot Miss Streak 8 | 1 3 6 2 3 . 1 5 4 8 . 1 1 . 1 Penetration Max . | . . . . . . . . . . . . . . . Secondary Targets 5 | . . 1 . 1 . . . . 1 . 2 . . . Max Gunslinging Chain 1 | . . 1 . 1 . . . . 1 . 1 . . . Shots Hit Robots 313 | 11 40 28 38 27 1 2 20 30 40 16 41 10 . 9 Core Hits 188 | 4 16 21 23 15 . 4 12 26 39 5 14 5 . 4 Critical Kills . | . . . . . . . . . . . . . . . Critical Parts Destroyed 2 | . 1 . . . . . 1 . . . . . . . Critical Strikes 9 | . 3 . . . . . 1 3 1 . . 1 . . Burn 1 | . . . . . . . . . . . . 1 . . Destroy 2 | . 1 . . . . . 1 . . . . . . . Blast 2 | . 2 . . . . . . . . . . . . . Sever 4 | . . . . . . . . 3 1 . . . . . Melee Attacks 44 | . . . . . 2 1 6 26 2 7 . . . . Impact . | . . . . . . . . . . . . . . . Slashing 44 | . . . . . 2 1 6 26 2 7 . . . . Piercing . | . . . . . . . . . . . . . . . Sneak Attacks . | . . . . . . . . . . . . . . . Combat Hostiles . | . . . . . . . . . . . . . . . Follow-up Attacks . | . . . . . . . . . . . . . . . Damage Inflicted 7600 | 139 573 608 704 650 13 141 428 1108 1483 444 874 181 . 254 Guns 2986 | 139 281 330 510 340 13 14 141 56 134 125 772 131 . . Cannons 1954 | . 292 . 41 . . . 215 164 703 162 102 50 . 225 Explosions 1873 | . . 278 153 310 . 127 . 385 591 . . . . 29 Melee 767 | . . . . . . . 72 503 35 157 . . . . Ramming 20 | . . . . . . . . . 20 . . . . . Kinetic 3998 | 139 573 330 551 340 13 14 356 220 469 125 772 96 . . Thermal 958 | . . . 16 . . . . . 368 162 102 85 . 225 Explosive 1720 | . . 278 . 310 . 127 . 385 591 . . . . 29 Electromagnetic 137 | . . . 137 . . . . . . . . . . . Impact . | . . . . . . . . . . . . . . . Slashing 767 | . . . . . . . 72 503 35 157 . . . . Piercing . | . . . . . . . . . . . . . . . Highest Corruption 9 | . . 9 2 2 2 2 . . . 1 3 4 4 4 Average Corruption 2 | . . 8 1 2 2 2 . . . 1 2 3 4 4 Corruption Purged . | . . . . . . . . . . . . . . . Corruption Blocked . | . . . . . . . . . . . . . . . Effects 69 | . . 7 13 4 11 7 . . . 1 12 5 1 8 Message Errors 10 | . . 2 . 1 . . . . . . 4 2 . 1 Matter Fused 19 | . . 2 5 . 5 2 . . . . 3 1 . 1 Heat Flow Errors 6 | . . . . . 2 . . . . . 2 . . 2 Energy Discharges 13 | . . . 4 2 . 2 . . . 1 2 1 . 1 Parts Fused 1 | . . 1 . . . . . . . . . . . . Data Loss (minor) 13 | . . 2 2 1 1 3 . . . . 1 1 . 2 Data Loss (major) 3 | . . . . . 2 . . . . . . . . 1 Misfires 2 | . . . 1 . 1 . . . . . . . . . Alerts 2 | . . . 1 . . . . . . . . . 1 . Overload Shots . | . . . . . . . . . . . . . . . Overflow Damage 101 | . . 29 . . . . . 42 30 . . . . . Projectiles . | . . . . . . . . . . . . . . . Explosions 92 | . . 29 . . . . . 33 30 . . . . . Melee 9 | . . . . . . . . 9 . . . . . . Knockbacks 23 | . 4 . . . . . 2 4 13 . . . . . Impact . | . . . . . . . . . . . . . . . Kinetic 23 | . 4 . . . . . 2 4 13 . . . . . Secondary . | . . . . . . . . . . . . . . . Self-Inflicted Damage 188 | . . 67 . . . 26 . 39 5 . . . . 51 Shots 6 | . . 2 . . . 1 . 1 1 . . . . 1 Rammed 2 | . . . . . . . . . 2 . . . . . Targets Rammed 3 | . . . . . . . . . 3 . . . . . Kicked 1 | . . . . . . . . . 1 . . . . . Crushed . | . . . . . . . . . . . . . . . Highest Temperature 435 | . 42 53 2 3 170 . 36 9 435 306 274 18 . 224 Average Temperature 87 | . 13 17 1 2 82 . 18 4 133 142 129 13 . 63 Received Heat Transfer 2396 | . 159 208 57 114 . . 81 153 810 195 322 117 . 180 Effects 12 | . . . . . . . . . 3 3 6 . . . Energy Bleed 1 | . . . . . . . . . 1 . . . . . Interference 9 | . . . . . . . . . . 3 6 . . . Matter Decay 1 | . . . . . . . . . 1 . . . . . Damage (minor) 1 | . . . . . . . . . 1 . . . . . Siege Activations . | . . . . . . . . . . . . . . . Robots Corrupted . | . . . . . . . . . . . . . . . Combat Hostiles . | . . . . . . . . . . . . . . . Parts Fried . | . . . . . . . . . . . . . . . Impact Corruptions . | . . . . . . . . . . . . . . . Robots Melted . | . . . . . . . . . . . . . . . Combat Hostiles . | . . . . . . . . . . . . . . . Parts Melted 1 | . . . . . . . . . 1 . . . . . Heat Transferred 1493 | . . . 50 . . . . . 518 222 148 222 . 333 Parts Sabotaged . | . . . . . . . . . . . . . . . Parts Stolen . | . . . . . . . . . . . . . . . Parts Stripped . | . . . . . . . . . . . . . . . Power Chain Reactions 1 | . . . 1 . . . . . . . . . . . Alert | -11 -10 -10 -9 -9 -9 -8 -8 -8 -8 -7 -7 -7 -7 -6 ------- Run | Yrd Mat Min Mat Min Exi Min Mat Gar Mat Fac Low Low Dat Pro Peak Influence 663 | 15 290 135 264 243 . 83 140 663 523 335 . . . . Initial 323 | . 9 49 . 51 . . . 91 323 237 . . . . Average 164 | 3 121 44 112 97 . 49 58 374 354 253 . . . . Maximum Alert Level 2 | . 1 . 1 1 . . . 2 2 1 . . . . Low Security (%) 68 | 100 84 100 94 85 . 100 100 25 . 9 . . . . Level 1 20 | . 15 . 5 14 . . . 12 81 90 . . . . Level 2 10 | . . . . . . . . 61 18 . . . . . Level 3 . | . . . . . . . . . . . . . . . Level 4 . | . . . . . . . . . . . . . . . Level 5 . | . . . . . . . . . . . . . . . High Security . | . . . . . . . . . . . . . . . Max Security . | . . . . . . . . . . . . . . . Squads Dispatched 12 | . 1 . . . . . 1 . 5 3 . 1 . 1 Investigation 3 | . . . . . . . . . 1 2 . . . . Extermination . | . . . . . . . . . . . . . . . Reinforcement 3 | . 1 . . . . . . . 2 . . . . . Assault 2 | . . . . . . . . . . . . 1 . 1 Garrison 4 | . . . . . . . 1 . 2 1 . . . . Intercept . | . . . . . . . . . . . . . . . Searches Triggered . | . . . . . . . . . . . . . . . Construction Impeded 1 | . . . . . . . . . 1 . . . . . Haulers Reinforced . | . . . . . . . . . . . . . . . Active Scanning Responses . | . . . . . . . . . . . . . . . Cargo Convoy Interrupts . | . . . . . . . . . . . . . . . Stealth | -11 -10 -10 -9 -9 -9 -8 -8 -8 -8 -7 -7 -7 -7 -6 --------- Run | Yrd Mat Min Mat Min Exi Min Mat Gar Mat Fac Low Low Dat Pro Distress Signals 10 | . 1 . 2 . . . . . 7 . . . . . Communications Jammed . | . . . . . . . . . . . . . . . Distress Signals . | . . . . . . . . . . . . . . . Times Spotted 146 | . 14 19 15 10 . 3 8 15 27 4 8 7 . 16 Peak Tracking Total 12 | . 3 12 4 3 . 3 4 6 9 3 4 6 . 9 Tactical Retreats 9 | . . 2 1 1 . . . . 3 . . 1 . 1 Traps | -11 -10 -10 -9 -9 -9 -8 -8 -8 -8 -7 -7 -7 -7 -6 ------- Run | Yrd Mat Min Mat Min Exi Min Mat Gar Mat Fac Low Low Dat Pro Traps Triggered 7 | . . . 2 . . . . 4 1 . . . . . Indirectly . | . . . . . . . . . . . . . . . Trap Hack Attempts . | . . . . . . . . . . . . . . . Triggered . | . . . . . . . . . . . . . . . Disarmed . | . . . . . . . . . . . . . . . Reprogrammed . | . . . . . . . . . . . . . . . Reused . | . . . . . . . . . . . . . . . Traps Extracted . | . . . . . . . . . . . . . . . Installed . | . . . . . . . . . . . . . . . Triggered . | . . . . . . . . . . . . . . . Machines | -11 -10 -10 -9 -9 -9 -8 -8 -8 -8 -7 -7 -7 -7 -6 ---------- Run | Yrd Mat Min Mat Min Exi Min Mat Gar Mat Fac Low Low Dat Pro Machines Disabled 7 | . 1 1 . 3 . . . 2 . . . . . . Max in Single Turn 2 | . 1 1 . 2 . . . 1 . . . . . . Garrison Access 1 | . . . . . . . . . . 1 . . . . Garrison Relay 1 | . . . . . . . . 1 . . . . . . Machines Repaired . | . . . . . . . . . . . . . . . Machines Dismantled . | . . . . . . . . . . . . . . . Machines Sabotaged . | . . . . . . . . . . . . . . . Overloaded Fab Kills . | . . . . . . . . . . . . . . . Hacking | -11 -10 -10 -9 -9 -9 -8 -8 -8 -8 -7 -7 -7 -7 -6 --------- Run | Yrd Mat Min Mat Min Exi Min Mat Gar Mat Fac Low Low Dat Pro Machines Accessed 27 | . 6 . 7 . 2 . 2 1 2 3 . . 4 . Terminals 14 | . 5 . 5 . . . 1 1 1 1 . . . . Fabricators 1 | . . . . . . . . . . 1 . . . . Repair Stations 3 | . 1 . 1 . . . . . 1 . . . . . Recycling Units . | . . . . . . . . . . . . . . . Scanalyzers 1 | . . . 1 . . . . . . . . . . . Garrison Access 2 | . . . . . . . 1 . . 1 . . . . Total Hacks 99 | . 19 . 17 . 6 . 8 1 11 7 . . 30 . Successful 75 | . 11 . 10 . 6 . 4 1 8 5 . . 30 . Failed 24 | . 8 . 7 . . . 4 . 3 2 . . . . Catastrophic 6 | . 1 . 3 . . . . . 1 1 . . . . Database Lockouts . | . . . . . . . . . . . . . . . Manual 14 | . 2 . 3 . . . 5 . 2 2 . . . . Terminals 43 | . 17 . 14 . . . 5 1 2 4 . . . . Fabricators 2 | . . . . . . . . . . 2 . . . . Repair Stations 13 | . 2 . 2 . . . . . 9 . . . . . Recycling Units . | . . . . . . . . . . . . . . . Scanalyzers 1 | . . . 1 . . . . . . . . . . . Garrison Access 4 | . . . . . . . 3 . . 1 . . . . Terminal Hacks 57 | . 9 . 8 . 6 . 2 1 . 1 . . 30 . Record 17 | . . . . . 6 . . . . . . . 11 . Part Schematic 11 | . . . 1 . . . . . . . . . 10 . Robot Schematic 6 | . . . . . . . . . . . . . 6 . Robot Analysis 1 | . . . . . . . 1 . . . . . . . Prototype ID Bank 8 | . 2 . 2 . . . 1 . . . . . 3 . Branch Access Points 1 | . . . 1 . . . . . . . . . . . Emergency Access Points 1 | . . . . . . . . 1 . . . . . . Repair Station Index 1 | . . . 1 . . . . . . . . . . . Alert Level 3 | . 2 . 1 . . . . . . . . . . . Dispatch Records 3 | . 3 . . . . . . . . . . . . . Transport Status 1 | . . . 1 . . . . . . . . . . . Hauler Manifests 2 | . 1 . . . . . . . . 1 . . . . Zone Layout 2 | . 1 . 1 . . . . . . . . . . . Fabricator Hacks 2 | . . . . . . . . . . 2 . . . . Load Schematic 1 | . . . . . . . . . . 1 . . . . Build 1 | . . . . . . . . . . 1 . . . . Repair Station Hacks 11 | . 2 . 1 . . . . . 8 . . . . . Scan Component 6 | . 1 . 1 . . . . . 4 . . . . . Repair 5 | . 1 . . . . . . . 4 . . . . . Recycling Unit Hacks . | . . . . . . . . . . . . . . . Scanalyzer . | . . . . . . . . . . . . . . . Garrison Access Hacks 2 | . . . . . . . 1 . . 1 . . . . Unlock Access 1 | . . . . . . . 1 . . . . . . . Seal Access 1 | . . . . . . . . . . 1 . . . . Unauthorized Hacks 3 | . . . 1 . . . 1 . . 1 . . . . Terminals 3 | . . . 1 . . . 1 . . 1 . . . . Botnet 3 | . . . 1 . . . 1 . . 1 . . . . Fabricators . | . . . . . . . . . . . . . . . Repair Stations . | . . . . . . . . . . . . . . . Recycling Units . | . . . . . . . . . . . . . . . Scanalyzers . | . . . . . . . . . . . . . . . Garrison Access . | . . . . . . . . . . . . . . . Data Cores Recovered . | . . . . . . . . . . . . . . . Used . | . . . . . . . . . . . . . . . Hacking Detections 16 | . 6 . 6 . . . 1 . 1 2 . . . . Full Trace Events 2 | . . . . . . . . . . 2 . . . . Feedback Events 1 | . . . . . . . . . . 1 . . . . Corruption 1 | . . . . . . . . . . 1 . . . . Feedback Blocked . | . . . . . . . . . . . . . . . Robot Schematics Acquired 6 | . . . . . . . . . . . . . 6 . Robots Built . | . . . . . . . . . . . . . . . Authchips . | . . . . . . . . . . . . . . . Time . | . . . . . . . . . . . . . . . Total Robot Build Rating . | . . . . . . . . . . . . . . . Part Schematics Acquired 11 | . . . 1 . . . . . . . . . 10 . Parts Built 1 | . . . . . . . . . . 1 . . . . Authchips . | . . . . . . . . . . . . . . . Time 51 | . . . . . . . . . . 51 . . . . Total Part Build Rating 1 | . . . . . . . . . . 1 . . . . Parts Repaired 5 | . 1 . . . . . . . 4 . . . . . Time 184 | . 26 . . . . . . . 158 . . . . . Parts Recycled . | . . . . . . . . . . . . . . . Recycled Matter . | . . . . . . . . . . . . . . . Retrieved Matter . | . . . . . . . . . . . . . . . Retrieved Components . | . . . . . . . . . . . . . . . Parts Scanalyzed . | . . . . . . . . . . . . . . . Part Schematics Acquired . | . . . . . . . . . . . . . . . Parts Damaged . | . . . . . . . . . . . . . . . Bothacking | -11 -10 -10 -9 -9 -9 -8 -8 -8 -8 -7 -7 -7 -7 -6 ------------ Run | Yrd Mat Min Mat Min Exi Min Mat Gar Mat Fac Low Low Dat Pro Used RIF Installer . | . . . . . . . . . . . . . . . Robots Hacked . | . . . . . . . . . . . . . . . Non-combat . | . . . . . . . . . . . . . . . Combat . | . . . . . . . . . . . . . . . Robot Hacks Applied . | . . . . . . . . . . . . . . . Relay Couplers Released 4 | . . . . . . . . 4 . . . . . . Machine Destruction 4 | . . . . . . . . 4 . . . . . . Fabnet Peak Effective % . | . . . . . . . . . . . . . . . Robots Rewired 4 | . . . . . 1 . . 3 . . . . . . Allies Hacked . | . . . . . . . . . . . . . . . Hacks Repelled . | . . . . . . . . . . . . . . . Allies | -11 -10 -10 -9 -9 -9 -8 -8 -8 -8 -7 -7 -7 -7 -6 -------- Run | Yrd Mat Min Mat Min Exi Min Mat Gar Mat Fac Low Low Dat Pro Total Allies 7 | . . 2 . . 1 . . 3 . . . . . 1 Largest Group 3 | . . 2 . . 1 1 1 3 2 . . . . 1 Highest-Rated Group 96 | . . 50 . . 8 8 8 72 48 . . . . 96 Highest-Rated Ally 96 | . . 31 . . 8 8 8 24 24 . . . . 96 Total Orders . | . . . . . . . . . . . . . . . Ally Attacks 36 | . . 4 . . . 2 1 10 3 . . . . 16 Total Damage 778 | . . 40 . . . . 12 261 42 . . . . 423 Kills 13 | . . . . . . . . 4 1 . . . . 8 Allies Corrupted . | . . . . . . . . . . . . . . . Allies Melted 1 | . . 1 . . . . . . . . . . . . Intel | -11 -10 -10 -9 -9 -9 -8 -8 -8 -8 -7 -7 -7 -7 -6 ------- Run | Yrd Mat Min Mat Min Exi Min Mat Gar Mat Fac Low Low Dat Pro Robot Analysis Total 1 | . . . . . . . 1 . . . . . . . Derelict Logs Recovered 7 | . . 1 . 2 . . . . . . 2 2 . . Drone Launches . | . . . . . . . . . . . . . . . Drone Recoveries . | . . . . . . . . . . . . . . . Exploration | -11 -10 -10 -9 -9 -9 -8 -8 -8 -8 -7 -7 -7 -7 -6 ------------- Run | Yrd Mat Min Mat Min Exi Min Mat Gar Mat Fac Low Low Dat Pro Turns Passed 8195 | 88 709 746 1067 670 1017 634 167 849 570 441 583 215 80 359 Spaces Moved 5710 | 44 436 528 757 464 832 467 71 417 236 212 537 241 81 387 Core 484 | 5 . 86 . . . . . . 85 . 162 . . 146 Treads 678 | . . . . . . . 35 417 55 171 . . . . Legs 3873 | 39 436 442 757 464 832 467 36 . 96 41 192 . . 71 Wheels 378 | . . . . . . . . . . . . 127 81 170 Hover . | . . . . . . . . . . . . . . . Flight 297 | . . . . . . . . . . . 183 114 . . Fastest Speed 50 | 50 120 50 120 120 120 120 120 160 50 120 55 55 100 50 Average Speed 115 | 112 120 111 120 120 120 120 139 160 102 152 92 77 100 84 Slowest Speed 250 | 120 120 130 120 120 120 120 160 160 160 160 250 100 100 120 Overloaded Moves . | . . . . . . . . . . . . . . . Propulsion Burnouts . | . . . . . . . . . . . . . . . Robots Hopped . | . . . . . . . . . . . . . . . Cave-ins Triggered . | . . . . . . . . . . . . . . . Exploration Rate (%) 51 | 4 71 75 43 77 92 96 10 47 26 4 65 50 71 41 Regions Visited 14 Branch Regions 8 Pre-discovered Areas 3 | . . . . . 1 . . . . . . 1 1 . Known Exits Taken 5 | . 1 1 1 . . . 1 . 1 . . . . . Unknown Exits Taken 8 | 1 . . . 1 1 1 . . . 1 1 1 1 . Scrap Searched 7 | . . 1 . 2 . 1 . . . . 3 . . . Spaces Dug 13 | . . . . 10 . 1 . 1 . 1 . . . . Terrain Destroyed 207 | . . 14 3 65 . 14 . 31 58 1 . . . 21 Melee 3 | . . . . . . 1 . 1 . 1 . . . . Projectile 7 | . . . . . . . . . 7 . . . . . AOE 197 | . . 14 3 65 . 13 . 30 51 . . . . 21 Terrain Rammed . | . . . . . . . . . . . . . . . Walls Destroyed . | . . . . . . . . . . . . . . . Machines Disabled . | . . . . . . . . . . . . . . . Actions | -11 -10 -10 -9 -9 -9 -8 -8 -8 -8 -7 -7 -7 -7 -6 --------- Run | Yrd Mat Min Mat Min Exi Min Mat Gar Mat Fac Low Low Dat Pro Total 6850 | 65 562 632 874 543 850 534 109 540 510 307 585 253 80 406 Wait 602 | 1 74 49 63 35 4 59 3 49 200 57 6 . . 2 Move 5696 | 43 435 527 756 463 831 466 70 416 235 211 536 240 80 387 Hop . | . . . . . . . . . . . . . . . Pick Up 48 | 6 5 2 10 1 1 . 5 1 8 4 4 1 . . Fast Attach 59 | 7 6 5 6 2 2 1 4 5 3 10 4 2 . 2 Attach 28 | . . 5 1 . . . 2 1 8 3 3 3 . 2 Detach 16 | . 1 . 1 . 1 . 4 . 6 . 1 . . 2 Swap 49 | . 1 7 3 12 2 4 1 10 3 4 2 . . . Drop 63 | . 9 9 11 9 3 1 2 4 10 3 2 . . . Fire 228 | 8 31 28 23 21 . 2 12 18 32 8 27 7 . 11 Melee 44 | . . . . . 2 1 6 26 2 7 . . . . Ram 2 | . . . . . . . . . 2 . . . . . Kick 1 | . . . . . . . . . 1 . . . . . Crush . | . . . . . . . . . . . . . . . Escape Stasis . | . . . . . . . . . . . . . . . Rewire 14 | . . . . . 4 . . 10 . . . . . . Trap . | . . . . . . . . . . . . . . . Miscellaneous . | . . . . . . . . . . . . . . . Route ------- -11/Scrapyard -10/Materials (discovered 3 exits: *Mat x2 / *Min) -10/Mines -9/Materials (discovered 3 exits: *Min x2 / Sto) -9/Mines (discovered 3 exits: *Mat x2 / *Exi) -9/Exiles (discovered 2 exits: [*Min x2]) -8/Mines (discovered 2 exits: *Mat x2) -8/Materials -8/Garrison (discovered 2 exits: *Fac / *Mat) -8/Materials -7/Factory -7/Lower Caves -7/Lower Caves -7/Data Miner -6/Proximity Caves History --------- Turn | Location | Event 13 | -11/Scrapyard | Discovered new exit (range 15) 89 | -11/Scrapyard | Entered Materials 258 | -10/Materials | Discovered new exit (range 5) 302 | -10/Materials | Build established: Mutant 496 | -10/Materials | Identified exit to Materials 546 | -10/Materials | Repaired Assault Rifle 690 | -10/Materials | Discovered exit to Materials (range 3) 720 | -10/Materials | Discovered new exit (range 9) 728 | -10/Materials | Identified exit to Mines 798 | -10/Materials | Entered Mines 800 | -10/Mines | Joined a pair of Derelicts in attacking an 0b10 outpost 822 | -10/Mines | Met a Derelict bent on vengeance 1292 | -10/Mines | Assembled infested the area 1302 | -10/Mines | Core integrity fell below 50% 1316 | -10/Mines | Core integrity fell below 20% 1344 | -10/Mines | Lost 7 parts (1p2n1u3w) 1506 | -10/Mines | Learned Materials emergency access door positions 1534 | -10/Mines | Discovered exit to Materials (range 10) 1544 | -10/Mines | Entered Materials 1544 | -9/Materials | Evolved 2 slots: Propulsion x2 1643 | -9/Materials | Identified exit to Mines 1643 | -9/Materials | Identified exit to Storage 2188 | -9/Materials | Build established: Scavenger-Mutant 2611 | -9/Materials | Entered Mines 2710 | -9/Mines | Deemed a non-threat by the Exiles lab entrance 2710 | -9/Mines | Discovered new exit (range 5) 2829 | -9/Mines | Discovered new exit (range 10) 2993 | -9/Mines | Learned 2 Materials zone layouts 3025 | -9/Mines | Learned Materials trap positions 3084 | -9/Mines | Found a hidden stash of uninstalled traps 3192 | -9/Mines | Discovered new exit (range 9) 3281 | -9/Mines | Entered Exiles 3281 | -9/Exiles | Found Exiles lab destroyed 3518 | -9/Exiles | Learned location of Zion (-6) 4000 | -9/Exiles | Discovered new exit (range 14) 4147 | -9/Exiles | Discovered new exit (range 14) 4298 | -9/Exiles | Entered Mines 4298 | -8/Mines | Accompanied by 1 ally 4763 | -8/Mines | Discovered new exit (range 13) 4831 | -8/Mines | Discovered new exit (range 7) 4932 | -8/Mines | Entered Materials 4932 | -8/Materials | Accompanied by 1 ally 4932 | -8/Materials | Evolved 2 slots: Utility x2 4934 | -8/Materials | Loaded intel: 13 trap records 5008 | -8/Materials | Garrison activated, responded to threat 5097 | -8/Materials | Identified exit to Garrison 5099 | -8/Materials | Entered Garrison 5167 | -8/Garrison | Triggered checkpoint 5283 | -8/Garrison | Triggered checkpoint 5288 | -8/Garrison | Triggered checkpoint 5342 | -8/Garrison | Build established: Mutant 5409 | -8/Garrison | Triggered checkpoint 5529 | -8/Garrison | Discovered new exit (range 3) 5533 | -8/Garrison | Identified exit to Factory 5649 | -8/Garrison | Triggered checkpoint 5688 | -8/Garrison | Discovered new exit (range 5) 5693 | -8/Garrison | Identified exit to Materials 5888 | -8/Garrison | Garrison Relay disabled 5921 | -8/Garrison | Build established: Scavenger-Mutant 5948 | -8/Garrison | Entered Materials 5948 | -8/Materials | Accompanied by 2 allies 6070 | -8/Materials | Repaired Med. Treads 6109 | -8/Materials | Repaired Flak Cannon 6155 | -8/Materials | Repaired Mak. Sword 6188 | -8/Materials | Repaired Rocket Launcher 6391 | -8/Materials | Garrison activated, responded to threat 6454 | -8/Materials | Core integrity fell below 50% 6486 | -8/Materials | Lost 9 parts (2p4n1u2w) 6501 | -8/Materials | Discovered exit to Factory (range 10) 6518 | -8/Materials | Entered Factory 6518 | -7/Factory | Evolved 2 slots: Power x1, Utility x1 6726 | -7/Factory | Build established: Mutant 6798 | -7/Factory | Garrison activated, responded to threat 6842 | -7/Factory | Discovered new exit (range 12) 6910 | -7/Factory | Fabricated Sensor Array (x1) 6959 | -7/Factory | Entered Lower Caves 6979 | -7/Lower Caves | Learned Factory garrison access intel 7289 | -7/Lower Caves | Lost 8 parts (2p3n2u1w) 7506 | -7/Lower Caves | Learned Factory emergency access door positions 7509 | -7/Lower Caves | Discovered new exit (range 4) 7542 | -7/Lower Caves | Entered another Lower Caves area 7570 | -7/Lower Caves | Spotted B-75 Beast 7694 | -7/Lower Caves | Lost 3 parts (1n1u1w) 7725 | -7/Lower Caves | Attracted the attention of an 0b10 outpost 7743 | -7/Lower Caves | Core integrity fell below 50% 7744 | -7/Lower Caves | Discovered new exit (range 13) 7757 | -7/Lower Caves | Entered Data Miner 7757 | -7/Data Miner | Discovered new exit (range 6) 7770 | -7/Data Miner | Lost 5 parts (1p3u1w) 7776 | -7/Data Miner | Met Data Miner 7794 | -7/Data Miner | Learned location of Section 7 (-3) 7794 | -7/Data Miner | Acquired the access code to Warlord's prototype stash 7811 | -7/Data Miner | Received God Mode back door access code from Data Miner 7837 | -7/Data Miner | Entered Proximity Caves 8008 | -6/Proximity Caves | Escorted by Enhanced Grunt 8108 | -6/Proximity Caves | Attracted the attention of an 0b10 outpost 8129 | -6/Proximity Caves | Spotted B-75 Beast 8182 | -6/Proximity Caves | Core integrity fell below 20% 8196 | -6/Proximity Caves | Destroyed by G-50 Soldier with Heavy Laser Last Messages --------------- 08108_ Y-64 Sentinel: "DETECTED UNIDENTIFIED DERELICT." 08112_ Y-64 Sentinel: "REQUESTING BACKUP." 08115_ G-50 Soldier destroyed. 08117_ Carbon-fiber Leg destroyed. 08119_ Critical hit (Burn: +37). 08119_ G-50 Soldier destroyed. 08122_ System corrupted: Heat flow error (+119). 08123_ L-41 Fighter destroyed. 08124_ Hvy. Particle Cannon destroyed. 08125_ Carbon-fiber Leg fries itself beyond repair. 08125_ S-27 Virus destroyed. 08126_ Enhanced Grunt Prototype Leg severed. 08131_ L-41 Fighter destroyed. 08132_ Carbon-fiber Leg fries itself beyond repair. 08133_ Slug penetrates Enhanced Grunt. 08135_ Enhanced Grunt destroyed. 08141_ Microactuators fries itself beyond repair. 08141_ Carbon-fiber Leg fries itself beyond repair. 08148_ System corrupted: Matter fused (-6). 08185_ Penetrated by Slug. Map ----- +----------------------------------------------------+ | ?????????????????????????????????????????????????? | | ?????????????????????????????????????????????????? | | ?????????????????????????????????????????????????? | | ?????????????????????????????????????????????????? | | ?????????????????????????????????????????????????? | | ?????????????????????????????????????????????????? | | ?????????????????????????????????????????????????? | | ?????????????????????????????????????????????????? | | ?????????????????????????????????????????????????? | | ?????????????????????????????????????????????????? | | ?????????????????????????????????????????????????? | | ?????????????????????????????????????????????????? | | ?????????????????????????????????????????????????? | | ????????????????????????????##???????????????????? | | ???????????????????????????# ????????????????????? | | ??????????????????????????# ????????????????????? | | ?????????????????????????? ????????????????????? | | ?????????????#####???????? ????????????????????? | | ?????????????# ##?????? ????????????????????? | | ?????????????# #????## ????????????????????? | | ?????????????# ##?### ?????????????????????? | | ??????????????# ### ?????????????????????? | | ???????#??##???# ## #??????????????????????? | | ??????? ## #### =*% ###????????????????????? | | ???????? gg ###??????????????????? | | ????????? g @ #??????????????????? | | ???????????# b #??????????????????? | | ?????????????# #??????????????????? | | ??????????###### #??????????????????? | | ?????????## ##### ##??????????????????? | | ????###### ###???????????????????? | | ????# ######## #?????????????????????? | | ????# #"" ""# #?????????????????????? | | ????### "" "# ##?????????????????????? | | ??????## #" "# ##??????????????????????? | | ???????# #" "# ##???????????????????????? | | ???????# ### ### ##????????????????????????? | | ??????## " % # ##?????????????????????????? | | ???####!% %% #??????????????????????????? | | ??## ! #??????????????????????????? | | ??# % ##??????????????????????????? | | ### !=! ##???????????????????????????? | | #" ! =% % ####????????????????????????????? | | % !% ## #???????????????????????????????? | | ##?### #???????????????????????????????? | | ##?????##???????????????????????????????? | | ##???????????????????????????????????????? | | ####????????????????????????????????????????? | | ###???????????????????????????????????????????? | | # #?????????????????????????????????????????????? | +----------------------------------------------------+ Best States ------------- Heat Dissipation 34 Energy Generation 23 Energy Capacity 265 Matter Stores 300 Matter Capacity 300 Sight Range 16 Robot Scan Range 14 Terrain Scan Density 210 Additional Mass Support 9 Weapon Cycling 15 Evasion (%) 59 Targeting Accuracy 8 Recoil Reduction 4 Defensive Hacking 11 Item Schematics ----------------- Sensor Array | -9/Materials | Hacked Combat Drone Bay | -7/Data Miner | Free Lgt. Regenerative Plating | -7/Data Miner | Free Cld. Aerolev Unit | -7/Data Miner | Free Gravity Neutralizer | -7/Data Miner | Free Gui. EMP Blaster | -7/Data Miner | Free Arm. Medium Treads | -7/Data Miner | Free Imp. Focal Shield | -7/Data Miner | Free Enh. Gauss Cannon | -7/Data Miner | Free Adv. Hacking Suite | -7/Data Miner | Free Variable Charge Gun | -7/Data Miner | Free Robot Schematics ------------------ B-48 Gladiator | -7/Data Miner | Free A-15 Conveyor | -7/Data Miner | Free O-24 Administrator | -7/Data Miner | Free M-28 Smith | -7/Data Miner | Free G-50 Soldier | -7/Data Miner | Free S-27 Virus | -7/Data Miner | Free Fabricated ------------ Sensor Array | x1 | -7/Factory Alien Tech Used ----------------- None Achievements -------------- None Challenges ------------ None Game ------ Seed HardenedPointyWarhead Manual? 0 Play Time 01:25:50 Cumulative 212.3 hours Start 2024.07.28 @ 16:19:48 End 2024.08.01 @ 08:43:49 Sessions 7 Manual Loads 0 Difficulty Rogue Special Mode None Game No. 164 Rogue 164 Adventurer 0 Explorer 0 Win Type - Total 1 Types 1/0/0/0/0/0/0/0/0 Lore% 57 Gallery% 64 Achievement% 41 Wizard Run 0 Options --------- Layout 0 ASCII 0 Keyboard 1 Movement Numpad Keybinds 0 Fullscreen 1 Font 12/Terminus Map View 83x54 Zoom Use 0% Tactical HUD 1 Map Filters NONE Filters NONE Steam 1 RUN: c55954e4-539b-4775-941e-17ecf454287f